fUST/lending_fUST_20260613
["ID","MTS","AMOUNT","RATE_DAILY","PERIOD"]
[424944137,1781314239000,-257.2057007,0.00022959,2]
[424944138,1781314239000,-173.36778828,0.00023671,2]
[424944140,1781314239000,-202.3832941,0.00023671,2]
[424944150,1781314239000,-194.91,0.0002412,2]
[424944149,1781314239000,-2055.12460312,0.00024075,2]
[424944151,1781314239000,-300.0,0.00024144,10]
[424944166,1781314239000,-622.41055231,0.00024558,2]
[424944165,1781314239000,-266.0,0.0002454,2]
[424944155,1781314239000,-346.73557657,0.00024531,2]
[424944164,1781314239000,-233.28238033,0.00024534,2]
[424944163,1781314239000,-225.06319623,0.00024533,2]
[424944148,1781314239000,-1316.59634234,0.00024075,2]
[424944161,1781314239000,-217.65,0.00024532,2]
[424944160,1781314239000,-369.77662446,0.00024531,2]
[424944159,1781314239000,-340.84051946,0.00024531,2]
[424944158,1781314239000,-404.76658821,0.00024531,2]
[424944154,1781314239000,-194.6528666,0.00024531,2]
[424944157,1781314239000,-303.03379504,0.00024531,2]
[424944156,1781314239000,-246.88522824,0.00024531,2]
[424944152,1781314239000,-194.91,0.0002422,2]
[424944153,1781314239000,-272.25,0.00024384,2]
[424944162,1781314239000,-243.34252385,0.00024533,2]
[424944173,1781314241000,-488.32253385,0.00024599,2]
[424944168,1781314241000,-849.29414891,0.00024558,2]
[424944169,1781314241000,-500.0,0.00024599,2]
[424944174,1781314241000,-500.0,0.00024599,2]
[424944170,1781314241000,-500.0,0.00024599,2]
[424944171,1781314241000,-500.0,0.00024599,2]
[424944176,1781314241000,-500.0,0.00024599,2]
[424944172,1781314241000,-500.0,0.00024599,2]
[424944177,1781314241000,-500.0,0.00024599,2]
[424944179,1781314241000,-500.0,0.00024599,2]
[424944180,1781314241000,-500.0,0.00024599,2]
[424944181,1781314241000,-841.66619642,0.000246,2]
[424944175,1781314241000,-500.0,0.00024599,2]
[424944183,1781314241000,-1825.08070627,0.000246,2]
[424944178,1781314241000,-500.0,0.00024599,2]
[424944182,1781314241000,-12574.59411242,0.000246,2]
[424944185,1781314243000,-406.87156888,0.000246,2]
[424944186,1781314243000,-888.31954241,0.000246,2]
[424944184,1781314243000,-2304.07069213,0.000246,2]
[424944192,1781314247000,-57801.90359077,0.000246,2]
[424944290,1781314321000,194.0,0.0002,120]
[424944292,1781314386000,-885.63121944,0.00023326,9]
[424944296,1781314631000,152.0,0.0002421,30]
[424944316,1781315232000,152.0,0.00024268,30]
[424944362,1781315432000,-152.0,0.00022956,7]
[424944354,1781315432000,-356.57307744,0.00020641,2]
[424944353,1781315432000,-339.10068377,0.00020641,2]
[424944351,1781315432000,-197.69097611,0.00019178,3]
[424944352,1781315432000,-165.20666693,0.00019378,2]
[424944360,1781315432000,-161.3,0.0002285,7]
[424944356,1781315432000,-730.1830159,0.00022624,2]
[424944363,1781315432000,-161.33,0.0002305,7]
[424944355,1781315432000,-180.420519,0.00022578,2]
[424944350,1781315432000,-885.63121944,0.00018986,9]
[424944361,1781315432000,-161.3,0.0002295,7]
[424944358,1781315432000,-328.03230965,0.00022711,2]
[424944369,1781315432000,-255.27,0.0002411,2]
[424944357,1781315432000,-313.2725345,0.00022697,2]
[424944375,1781315432000,-31505.72695384,0.000244,2]
[424944374,1781315432000,-21001.91642434,0.000244,2]
[424944371,1781315432000,-255.27,0.00024384,2]
[424944359,1781315432000,-161.3,0.0002275,7]
[424944373,1781315432000,-152.26083161,0.000244,2]
[424944365,1781315432000,-156.23594376,0.00023674,2]
[424944370,1781315432000,-1295.19193017,0.000243,2]
[424944372,1781315432000,-785.96482147,0.00024398,2]
[424944366,1781315432000,-197.89547958,0.00023674,2]
[424944364,1781315432000,-255.27,0.00023562,2]
[424944367,1781315432000,-173.30293693,0.00023674,2]
[424944368,1781315432000,-255.27,0.00023836,2]
[424944388,1781315440000,-32943.07998254,0.000244,2]
[424944387,1781315440000,-1321.19056592,0.000244,2]
[424944386,1781315440000,-39509.79556812,0.000244,2]
[424944385,1781315440000,-152.0,0.00022961,7]
[424944410,1781315444000,-304.25747825,0.000244,2]
[424944420,1781315447000,-812246.08112987,0.000244,2]
[424944419,1781315447000,-26696.4824819,0.000244,2]
[424944427,1781315758000,152.0,0.00024268,30]
[424944429,1781315807000,210.25292383,0.000178,30]
[424944434,1781315948000,777440.3,0.0002465,30]
[424944440,1781316186000,1000.0,0.00022311,30]
[424944504,1781316640000,-500.0,0.0002385,2]
[424944507,1781316640000,-500.0,0.0002385,2]
[424944509,1781316640000,-500.0,0.0002385,2]
[424944512,1781316640000,-500.0,0.0002385,2]
[424944513,1781316640000,-500.0,0.0002385,2]
[424944511,1781316640000,-500.0,0.0002385,2]
[424944515,1781316640000,-500.0,0.0002385,2]
[424944517,1781316640000,-500.0,0.0002385,2]
[424944518,1781316640000,-500.0,0.0002385,2]
[424944520,1781316640000,-640.71687418,0.0002385,2]
[424944521,1781316640000,-581.1262199,0.0002385,2]
[424944519,1781316640000,-500.0,0.0002385,2]
[424944516,1781316640000,-500.0,0.0002385,2]
[424944522,1781316640000,-500.0,0.0002385,2]
[424944524,1781316640000,-500.0,0.0002385,2]
[424944523,1781316640000,-475.44904487,0.0002385,2]
[424944526,1781316640000,-151.5,0.0002385,2]
[424944514,1781316640000,-500.0,0.0002385,2]
[424944505,1781316640000,-500.0,0.0002385,2]
[424944502,1781316640000,-500.0,0.0002385,2]
[424944506,1781316640000,-500.0,0.0002385,2]
[424944525,1781316640000,-586.76324012,0.0002385,2]
[424944485,1781316640000,-1892.65942769,0.000118,5]
[424944486,1781316640000,-57600.07516646,0.000118,5]
[424944488,1781316640000,-221.34756687,0.00020301,3]
[424944487,1781316640000,-1133.29293889,0.00020201,2]
[424944490,1781316640000,-180.420519,0.00022489,2]
[424944489,1781316640000,-174.26207235,0.00022,20]
[424944491,1781316640000,-162.86,0.00022759,7]
[424944503,1781316640000,-500.0,0.0002385,2]
[424944492,1781316640000,-162.86,0.00022859,7]
[424944494,1781316640000,-162.86,0.00022959,7]
[424944495,1781316640000,-152.0,0.00022961,7]
[424944498,1781316640000,-150.93508138,0.00023682,2]
[424944496,1781316640000,-1133.29293887,0.00023015,2]
[424944497,1781316640000,-187.2,0.00023562,2]
[424944500,1781316640000,-201.37867512,0.00023682,2]
[424944499,1781316640000,-161.7494078,0.00023682,2]
[424944501,1781316640000,-187.2,0.00023836,2]
[424944493,1781316640000,-152.0,0.00022947,7]
[424944528,1781316640000,-1116.0,0.00023851,2]
[424944538,1781316640000,-500.0,0.00023851,2]
[424944529,1781316640000,-500.0,0.00023851,2]
[424944552,1781316640000,-1116.0,0.00023851,2]
[424944553,1781316640000,-1116.0,0.00023851,2]
[424944560,1781316640000,-187.90563099,0.00023851,2]
[424944561,1781316640000,-928.09436901,0.00023851,2]
[424944554,1781316640000,-1116.0,0.00023851,2]
[424944555,1781316640000,-747.54600967,0.00023851,2]
[424944557,1781316640000,-1116.0,0.00023851,2]
[424944556,1781316640000,-368.45399033,0.00023851,2]
[424944558,1781316640000,-1116.0,0.00023851,2]
[424944559,1781316640000,-1116.0,0.00023851,2]
[424944562,1781316640000,-1116.0,0.00023851,2]
[424944564,1781316640000,-258.57142397,0.00023851,2]
[424944563,1781316640000,-1116.0,0.00023851,2]
[424944565,1781316640000,-860.19429411,0.00023851,2]
[424944566,1781316640000,-151.0,0.000241,10]
[424944569,1781316640000,-103.0275557,0.000241,9]
[424944527,1781316640000,-500.0,0.00023851,2]
[424944550,1781316640000,-1116.0,0.00023851,2]
[424944551,1781316640000,-1116.0,0.00023851,2]
[424944567,1781316640000,-151.0,0.000241,8]
[424944545,1781316640000,-500.0,0.00023851,2]
[424944530,1781316640000,-1116.0,0.00023851,2]
[424944536,1781316640000,-500.0,0.00023851,2]
[424944534,1781316640000,-500.0,0.00023851,2]
[424944531,1781316640000,-500.0,0.00023851,2]
[424944532,1781316640000,-500.0,0.00023851,2]
[424944533,1781316640000,-1116.0,0.00023851,2]
[424944568,1781316640000,-151.0,0.000241,9]
[424944537,1781316640000,-1116.0,0.00023851,2]
[424944535,1781316640000,-1116.0,0.00023851,2]
[424944539,1781316640000,-1116.0,0.00023851,2]
[424944540,1781316640000,-1116.0,0.00023851,2]
[424944548,1781316640000,-1101.57744183,0.00023851,2]
[424944546,1781316640000,-1116.0,0.00023851,2]
[424944544,1781316640000,-1116.0,0.00023851,2]
[424944549,1781316640000,-14.42255817,0.00023851,2]
[424944543,1781316640000,-1116.0,0.00023851,2]
[424944541,1781316640000,-500.0,0.00023851,2]
[424944542,1781316640000,-500.0,0.00023851,2]
[424944547,1781316640000,-260.79982871,0.00023851,2]
[424944577,1781316641000,-123.54172416,0.00024115,3]
[424944571,1781316641000,-151.0,0.000241,6]
[424944572,1781316641000,-187.2,0.0002411,2]
[424944575,1781316641000,-353.18,0.00024115,3]
[424944573,1781316641000,-698.47395318,0.00024115,3]
[424944576,1781316641000,-53.04827584,0.00024115,3]
[424944574,1781316641000,-7.89604682,0.00024115,3]
[424944580,1781316641000,-500.0,0.00024125,2]
[424944570,1781316641000,-47.9724443,0.000241,9]
[424944579,1781316641000,-500.0,0.00024125,2]
[424944582,1781316641000,-500.0,0.00024125,2]
[424944583,1781316641000,-500.0,0.00024125,2]
[424944587,1781316641000,-500.0,0.00024125,2]
[424944581,1781316641000,-451.09505652,0.00024125,2]
[424944586,1781316641000,-500.0,0.00024125,2]
[424944588,1781316641000,-500.0,0.00024125,2]
[424944585,1781316641000,-500.0,0.00024125,2]
[424944589,1781316641000,-107.98099968,0.00024125,2]
[424944584,1781316641000,-500.0,0.00024125,2]
[424944578,1781316641000,-529.81,0.00024115,3]
[424944604,1781316643000,-392.01900032,0.00024125,2]
[424944606,1781316643000,-500.0,0.00024125,2]
[424944607,1781316643000,-500.0,0.00024125,2]
[424944605,1781316643000,-500.0,0.00024125,2]
[424944608,1781316643000,-500.0,0.00024125,2]
[424944609,1781316643000,-500.0,0.00024125,2]
[424944612,1781316643000,-500.0,0.00024125,2]
[424944610,1781316643000,-388.39796065,0.00024125,2]
[424944613,1781316643000,-500.0,0.00024125,2]
[424944614,1781316643000,-398.75581175,0.00024125,2]
[424944611,1781316643000,-500.0,0.00024125,2]
[424944615,1781316644000,-500.0,0.00024125,2]
[424944619,1781316644000,-500.0,0.00024125,2]
[424944621,1781316644000,-426.44102525,0.00024125,2]
[424944620,1781316644000,-500.0,0.00024125,2]
[424944618,1781316644000,-617.58792208,0.00024125,2]
[424944616,1781316644000,-500.0,0.00024125,2]
[424944617,1781316644000,-500.0,0.00024125,2]
[424944624,1781316644000,-500.0,0.00024125,2]
[424944622,1781316644000,-73.55897475,0.00024125,2]
[424944625,1781316644000,-500.0,0.00024125,2]
[424944628,1781316644000,-1013.0,0.00024125,2]
[424944629,1781316644000,-1013.0,0.00024125,2]
[424944627,1781316644000,-371.9172516,0.00024125,2]
[424944626,1781316644000,-244.24943024,0.00024125,2]
[424944630,1781316644000,-472.24952208,0.00024125,2]
[424944631,1781316644000,-540.75047792,0.00024125,2]
[424944632,1781316644000,-179.24952208,0.00024125,2]
[424944623,1781316644000,-500.0,0.00024125,2]
[424944665,1781316646000,-610.0,0.00024125,2]
[424944664,1781316646000,-833.75047792,0.00024125,2]
[424944667,1781316646000,-610.0,0.00024125,2]
[424944672,1781316646000,-1013.0,0.00024125,2]
[424944666,1781316646000,-1013.0,0.00024125,2]
[424944669,1781316646000,-610.0,0.00024125,2]
[424944671,1781316646000,-610.0,0.00024125,2]
[424944670,1781316646000,-1013.0,0.00024125,2]
[424944675,1781316646000,-610.0,0.00024125,2]
[424944674,1781316646000,-1013.0,0.00024125,2]
[424944673,1781316646000,-610.0,0.00024125,2]
[424944676,1781316646000,-1013.0,0.00024125,2]
[424944668,1781316646000,-1013.0,0.00024125,2]
[424944717,1781316647000,-151.0,0.00024125,2]
[424944716,1781316647000,-151.0,0.00024125,2]
[424944715,1781316647000,-151.0,0.00024125,2]
[424944714,1781316647000,-622.43551791,0.00024125,2]
[424944718,1781316647000,-166.180769,0.00024125,2]
[424944713,1781316647000,-610.0,0.00024125,2]
[424944711,1781316647000,-1029.27786142,0.00024125,2]
[424944710,1781316647000,-37.63052054,0.00024125,2]
[424944707,1781316647000,-610.0,0.00024125,2]
[424944708,1781316647000,-1013.0,0.00024125,2]
[424944719,1781316647000,-251.879741,0.00024125,2]
[424944712,1781316647000,-610.0,0.00024125,2]
[424944720,1781316647000,-251.879741,0.00024125,2]
[424944727,1781316647000,-151.0,0.00024125,2]
[424944723,1781316647000,-151.0,0.00024125,2]
[424944721,1781316647000,-251.879741,0.00024125,2]
[424944724,1781316647000,-151.0,0.00024125,2]
[424944726,1781316647000,-151.0,0.00024125,2]
[424944730,1781316647000,-300.0,0.00024199,4]
[424944728,1781316647000,-151.0,0.00024125,2]
[424944725,1781316647000,-151.0,0.00024125,2]
[424944729,1781316647000,-256.761943,0.00024125,2]
[424944709,1781316647000,-572.36947946,0.00024125,2]
[424944732,1781316647000,-151.0,0.000242,2]
[424944731,1781316647000,-151.0,0.000242,2]
[424944736,1781316647000,-151.0,0.000242,2]
[424944734,1781316647000,-151.0,0.000242,2]
[424944722,1781316647000,-251.879741,0.00024125,2]
[424944706,1781316647000,-1013.0,0.00024125,2]
[424944695,1781316647000,-610.0,0.00024125,2]
[424944705,1781316647000,-610.0,0.00024125,2]
[424944735,1781316647000,-151.0,0.000242,2]
[424944677,1781316647000,-610.0,0.00024125,2]
[424944678,1781316647000,-396.12278868,0.00024125,2]
[424944679,1781316647000,-152.0,0.0002297,7]
[424944680,1781316647000,-616.87721132,0.00024125,2]
[424944682,1781316647000,-610.0,0.00024125,2]
[424944681,1781316647000,-151.5,0.00024125,2]
[424944683,1781316647000,-1013.0,0.00024125,2]
[424944684,1781316647000,-302.61665226,0.00024125,2]
[424944691,1781316647000,-987.04370558,0.00024125,2]
[424944686,1781316647000,-1013.0,0.00024125,2]
[424944687,1781316647000,-610.0,0.00024125,2]
[424944690,1781316647000,-25.95629442,0.00024125,2]
[424944689,1781316647000,-610.0,0.00024125,2]
[424944688,1781316647000,-1013.0,0.00024125,2]
[424944685,1781316647000,-610.0,0.00024125,2]
[424944693,1781316647000,-1013.0,0.00024125,2]
[424944694,1781316647000,-610.0,0.00024125,2]
[424944696,1781316647000,-1013.0,0.00024125,2]
[424944692,1781316647000,-610.0,0.00024125,2]
[424944697,1781316647000,-610.0,0.00024125,2]
[424944702,1781316647000,-1013.0,0.00024125,2]
[424944698,1781316647000,-1013.0,0.00024125,2]
[424944701,1781316647000,-610.0,0.00024125,2]
[424944699,1781316647000,-610.0,0.00024125,2]
[424944700,1781316647000,-1013.0,0.00024125,2]
[424944703,1781316647000,-610.0,0.00024125,2]
[424944704,1781316647000,-1013.0,0.00024125,2]
[424944737,1781316647000,-151.0,0.000242,2]
[424944733,1781316647000,-250.676588,0.000242,2]
[424944743,1781316647000,-251.879741,0.000242,2]
[424944771,1781316647000,-599.911182,0.000243,2]
[424944773,1781316647000,-599.911182,0.000243,2]
[424944774,1781316647000,-151.0,0.000243,2]
[424944772,1781316647000,-599.911182,0.000243,2]
[424944775,1781316647000,-151.0,0.000243,2]
[424944777,1781316647000,-151.0,0.000243,2]
[424944780,1781316647000,-151.0,0.000243,2]
[424944778,1781316647000,-151.0,0.000243,2]
[424944779,1781316647000,-151.0,0.000243,2]
[424944776,1781316647000,-194.395728,0.000243,2]
[424944781,1781316647000,-151.0,0.000243,2]
[424944782,1781316647000,-151.0,0.000243,2]
[424944783,1781316647000,-151.0,0.000243,2]
[424944784,1781316647000,-151.0,0.000243,2]
[424944785,1781316647000,-151.0,0.000243,2]
[424944786,1781316647000,-151.0,0.000243,2]
[424944787,1781316647000,-152.604447,0.000243,2]
[424944789,1781316647000,-420.486824,0.000243,2]
[424944792,1781316647000,-199.83,0.000243,2]
[424944795,1781316647000,-511.98942277,0.00024399,3]
[424944788,1781316647000,-420.486824,0.000243,2]
[424944791,1781316647000,-420.486824,0.000243,2]
[424944793,1781316647000,-187.2,0.00024384,2]
[424944794,1781316647000,-500.0,0.00024399,2]
[424944796,1781316647000,-151.0,0.000244,9]
[424944798,1781316647000,-733.56716678,0.00024444,2]
[424944739,1781316647000,-420.486824,0.000242,2]
[424944770,1781316647000,-599.911182,0.000243,2]
[424944767,1781316647000,-599.911182,0.000243,2]
[424944790,1781316647000,-420.486824,0.000243,2]
[424944764,1781316647000,-151.0,0.000243,2]
[424944769,1781316647000,-599.911182,0.000243,2]
[424944745,1781316647000,-151.0,0.000242,6]
[424944738,1781316647000,-151.0,0.000242,2]
[424944797,1781316647000,-151.0,0.000244,6]
[424944740,1781316647000,-420.486824,0.000242,2]
[424944742,1781316647000,-420.486824,0.000242,2]
[424944746,1781316647000,-251.879741,0.000242,2]
[424944744,1781316647000,-251.879741,0.000242,2]
[424944747,1781316647000,-151.0,0.000242,6]
[424944749,1781316647000,-151.0,0.000242,10]
[424944748,1781316647000,-151.0,0.000242,10]
[424944750,1781316647000,-151.0,0.000242,8]
[424944751,1781316647000,-251.879741,0.000242,2]
[424944753,1781316647000,-151.0,0.000242,2]
[424944741,1781316647000,-420.486824,0.000242,2]
[424944754,1781316647000,-599.911182,0.00024299,2]
[424944752,1781316647000,-151.0,0.000242,2]
[424944768,1781316647000,-599.911182,0.000243,2]
[424944766,1781316647000,-599.911182,0.000243,2]
[424944763,1781316647000,-152.156426,0.000243,2]
[424944762,1781316647000,-151.0,0.00024299,2]
[424944761,1781316647000,-151.0,0.00024299,2]
[424944765,1781316647000,-151.0,0.000243,2]
[424944760,1781316647000,-151.0,0.00024299,2]
[424944759,1781316647000,-151.0,0.00024299,2]
[424944755,1781316647000,-599.911182,0.00024299,2]
[424944757,1781316647000,-152.672326,0.00024299,2]
[424944758,1781316647000,-599.911182,0.00024299,2]
[424944756,1781316647000,-599.911182,0.00024299,2]
[424944826,1781316648000,-389.7663427,0.00025108,2]
[424944835,1781316648000,-458.94546862,0.00025164,2]
[424944833,1781316648000,-485.2482234,0.00025116,2]
[424944832,1781316648000,-468.90771825,0.00025116,2]
[424944828,1781316648000,-354.5163664,0.00025108,2]
[424944831,1781316648000,-452.80524415,0.00025116,2]
[424944830,1781316648000,-432.50818623,0.00025116,2]
[424944827,1781316648000,-325.19054357,0.00025108,2]
[424944825,1781316648000,-483.03544721,0.00025108,2]
[424944829,1781316648000,-398.67871826,0.00025108,2]
[424944834,1781316648000,-604.13602535,0.00025116,2]
[424944842,1781316648000,-151.0,0.00025444,2]
[424944839,1781316648000,-160.31,0.00025228,7]
[424944836,1781316648000,-479.80520167,0.00025164,2]
[424944838,1781316648000,-218.29,0.0002522,7]
[424944843,1781316648000,-151.0,0.00025444,2]
[424944844,1781316648000,-599.911182,0.00025444,2]
[424944841,1781316648000,-151.0,0.00025444,2]
[424944837,1781316648000,-187.2,0.00025205,2]
[424944845,1781316648000,-599.911182,0.00025444,2]
[424944822,1781316648000,-299.29370015,0.00025,20]
[424944847,1781316648000,-599.911182,0.00025444,2]
[424944840,1781316648000,-200730.194,0.00025444,2]
[424944823,1781316648000,-188.07565684,0.00025106,2]
[424944811,1781316648000,-160.0,0.0002459,2]
[424944820,1781316648000,-3529.80676322,0.000249,120]
[424944849,1781316648000,-151.0,0.00025444,2]
[424944799,1781316648000,-241.5177236,0.00024534,2]
[424944800,1781316648000,-194.88317135,0.00024534,2]
[424944801,1781316648000,-162.59527179,0.00024534,2]
[424944807,1781316648000,-323.4988156,0.00024542,2]
[424944804,1781316648000,-216.25409312,0.00024542,2]
[424944802,1781316648000,-177.2581832,0.00024534,2]
[424944803,1781316648000,-199.33935913,0.00024534,2]
[424944805,1781316648000,-301.87016277,0.00024542,2]
[424944806,1781316648000,-234.45385913,0.00024542,2]
[424944824,1781316648000,-151.0,0.00025107,2]
[424944808,1781316648000,-402.75735023,0.00024542,2]
[424944809,1781316648000,-229.47273431,0.0002459,2]
[424944812,1781316648000,-309.37533515,0.0002459,2]
[424944813,1781316648000,-151.58618428,0.00024601,2]
[424944814,1781316648000,-187.2,0.00024658,2]
[424944815,1781316648000,-152.0,0.00024689,30]
[424944817,1781316648000,-300.0,0.00024705,2]
[424944819,1781316648000,-158.099829,0.00024859,2]
[424944816,1781316648000,-476.69944332,0.00024705,2]
[424944818,1781316648000,-1002.22,0.000248,2]
[424944821,1781316648000,-187.2,0.00024932,2]
[424944810,1781316648000,-239.90260084,0.0002459,2]
[424944848,1781316648000,-151.583144,0.00025444,2]
[424944869,1781316648000,-187.2,0.00025479,2]
[424944854,1781316648000,-151.0,0.00025444,2]
[424944878,1781316648000,-598.0180774,0.00025498,2]
[424944882,1781316648000,-2000.0,0.00025498,120]
[424944879,1781316648000,-603.74032554,0.00025498,2]
[424944877,1781316648000,-487.78581536,0.0002549,2]
[424944883,1781316648000,-646.9976312,0.00025498,2]
[424944880,1781316648000,-703.36157738,0.00025498,2]
[424944884,1781316648000,-600.0,0.0002553,10]
[424944886,1781316648000,-1040.47171364,0.00025544,3]
[424944887,1781316648000,-157.26652961,0.00025544,120]
[424944885,1781316648000,-3000.0,0.00025544,120]
[424944881,1781316648000,-158.00900751,0.00025498,2]
[424944888,1781316648000,-156.58,0.00025544,2]
[424944892,1781316648000,-156.62,0.00025544,2]
[424944891,1781316648000,-156.62,0.00025544,2]
[424944893,1781316648000,-156.62,0.00025544,2]
[424944890,1781316648000,-156.62,0.00025544,2]
[424944897,1781316648000,-157.9206254,0.00025544,120]
[424944896,1781316648000,-811.87714554,0.00025544,120]
[424944895,1781316648000,-156.62,0.00025544,2]
[424944894,1781316648000,-156.62,0.00025544,2]
[424944898,1781316648000,-153.68266525,0.00025544,30]
[424944899,1781316648000,-2635.58172066,0.00025544,7]
[424944846,1781316648000,-599.911182,0.00025444,2]
[424944876,1781316648000,-584.64951406,0.0002549,2]
[424944889,1781316648000,-156.62,0.00025544,2]
[424944873,1781316648000,-198.61760839,0.00025487,2]
[424944874,1781316648000,-376.15131367,0.00025488,2]
[424944852,1781316648000,-151.0,0.00025444,2]
[424944856,1781316648000,-420.486824,0.00025444,2]
[424944855,1781316648000,-151.0,0.00025444,2]
[424944851,1781316648000,-151.0,0.00025444,2]
[424944850,1781316648000,-151.0,0.00025444,2]
[424944853,1781316648000,-151.0,0.00025444,2]
[424944858,1781316648000,-420.486824,0.00025444,2]
[424944860,1781316648000,-251.879741,0.00025444,2]
[424944861,1781316648000,-251.879741,0.00025444,2]
[424944859,1781316648000,-420.486824,0.00025444,2]
[424944857,1781316648000,-420.486824,0.00025444,2]
[424944863,1781316648000,-251.879741,0.00025444,2]
[424944864,1781316648000,-151.0,0.00025444,2]
[424944867,1781316648000,-151.0,0.00025444,2]
[424944865,1781316648000,-151.0,0.00025444,2]
[424944866,1781316648000,-151.0,0.00025444,2]
[424944868,1781316648000,-151.0,0.00025444,2]
[424944870,1781316648000,-1412.74,0.00025485,3]
[424944871,1781316648000,-706.36,0.00025485,3]
[424944872,1781316648000,-353.18,0.00025485,3]
[424944862,1781316648000,-251.879741,0.00025444,2]
[424944875,1781316648000,-724.55317081,0.0002549,2]
[424944916,1781316649000,-160.0,0.00026599,4]
[424944917,1781316649000,-187.2,0.00026849,2]
[424944919,1781316649000,-273.632228,0.00027,2]
[424944921,1781316649000,-769.38344291,0.00027056,2]
[424944918,1781316649000,-151.0,0.00027,2]
[424944925,1781316649000,-599.911182,0.000271,2]
[424944920,1781316649000,-175.0,0.00027,7]
[424944923,1781316649000,-151.0,0.000271,2]
[424944922,1781316649000,-1041.61512779,0.000271,2]
[424944928,1781316649000,-599.911176,0.000271,2]
[424944926,1781316649000,-599.911182,0.000271,2]
[424944924,1781316649000,-151.0,0.000271,2]
[424944914,1781316649000,-175.819844,0.00026558,14]
[424944903,1781316649000,-160.0,0.00025711,3]
[424944913,1781316649000,-905.61048831,0.00026455,2]
[424944912,1781316649000,-10307.016836,0.000264,2]
[424944911,1781316649000,-187.2,0.00026301,2]
[424944910,1781316649000,-151.0,0.00026246,6]
[424944908,1781316649000,-187.2,0.00026027,2]
[424944904,1781316649000,-187.2,0.00025753,2]
[424944909,1781316649000,-158.099829,0.00026167,2]
[424944906,1781316649000,-754.67540692,0.00025881,2]
[424944905,1781316649000,-1133.29293887,0.00025829,2]
[424944907,1781316649000,-10000.0,0.00026,120]
[424944901,1781316649000,-719.70780251,0.00025548,2]
[424944900,1781316649000,-688.41820293,0.00025548,2]
[424944902,1781316649000,-805.51470047,0.00025548,2]
[424944927,1781316649000,-599.911182,0.000271,2]
[424944915,1781316649000,-187.2,0.00026575,2]
[424944929,1781316649000,-151.0,0.000271,2]
[424944944,1781316649000,-151.0,0.000271,2]
[424944930,1781316649000,-157.8,0.000271,2]
[424944931,1781316649000,-151.0,0.000271,2]
[424944957,1781316649000,-151.779173,0.000276,7]
[424944955,1781316649000,-1041.61512779,0.000276,2]
[424944959,1781316649000,-161.0,0.00027973,27]
[424944956,1781316649000,-431.136207,0.000276,2]
[424944958,1781316649000,-1041.61512779,0.000279,2]
[424944954,1781316649000,-161.26131267,0.00027487,5]
[424944951,1781316649000,-158.099829,0.00027475,2]
[424944950,1781316649000,-187.23,0.00027397,2]
[424944952,1781316649000,-160.0,0.00027487,5]
[424944953,1781316649000,-165.01696066,0.00027487,5]
[424944949,1781316649000,-1056.54556969,0.00027315,2]
[424944946,1781316649000,-151.0,0.000271,2]
[424944942,1781316649000,-176.917008,0.000271,2]
[424944960,1781316649000,-740250.30850198,0.00028,2]
[424944948,1781316649000,-1041.61512779,0.000273,2]
[424944937,1781316649000,-420.486824,0.000271,2]